[Event "Early-Titled-Tuesday-Blitz-May-28-2024"]
[Site "Chess.com"]
[Date "2024.05.28"]
[Round "7"]
[White "dmosesov"]
[Black "Zhigalko_Sergei"]
[Result "0-1"]
[WhiteElo "2661"]
[BlackElo "2899"]
[TimeControl "180+1"]
[EndTime "9:19:03 PDT"]
[Termination "Zhigalko_Sergei won by resignation"]

1. e4 {[%clk 0:03:00.9]} 1... c5 {[%clk 0:02:58.5]} 2. Nf3 {[%clk 0:03:00.7]}
2... Nc6 {[%clk 0:02:59]} 3. Bc4 {[%clk 0:03:00.8]} 3... Nf6 {[%clk 0:02:58.2]}
4. e5 {[%clk 0:03:00.2]} 4... d5 {[%clk 0:02:58.3]} 5. Bb5 {[%clk 0:02:58.1]}
5... Nd7 {[%clk 0:02:49.9]} 6. Bxc6 {[%clk 0:02:57.8]} 6... bxc6 {[%clk
0:02:50.8]} 7. d3 {[%clk 0:02:58.2]} 7... g6 {[%clk 0:02:33]} 8. Qe2 {[%clk
0:02:36.1]} 8... Bg7 {[%clk 0:02:30.9]} 9. h4 {[%clk 0:02:24.1]} 9... f6 {[%clk
0:01:48]} 10. exf6 {[%clk 0:01:46.2]} 10... Nxf6 {[%clk 0:01:46.3]} 11. Ne5
{[%clk 0:01:46.3]} 11... Qc7 {[%clk 0:01:18.3]} 12. h5 {[%clk 0:01:30.4]} 12...
gxh5 {[%clk 0:00:54.7]} 13. Nd2 {[%clk 0:00:58]} 13... Bg4 {[%clk 0:00:43.7]}
14. Ndf3 {[%clk 0:00:46.9]} 14... Qc8 {[%clk 0:00:27.2]} 15. Bf4 {[%clk
0:00:39.4]} 15... O-O {[%clk 0:00:27.5]} 16. Bg3 {[%clk 0:00:34.7]} 16... a5
{[%clk 0:00:17.9]} 17. O-O-O {[%clk 0:00:30.6]} 17... a4 {[%clk 0:00:16.9]} 18.
a3 {[%clk 0:00:28.6]} 18... Rb8 {[%clk 0:00:14.5]} 19. c3 {[%clk 0:00:28.6]}
19... Rb3 {[%clk 0:00:12.7]} 20. Nxg4 {[%clk 0:00:25.9]} 20... hxg4 {[%clk
0:00:11.2]} 21. Ng5 {[%clk 0:00:25.3]} 21... Qf5 {[%clk 0:00:08.5]} 22. Ne6
{[%clk 0:00:21.7]} 22... Re8 {[%clk 0:00:07.7]} 23. Nxc5 {[%clk 0:00:18]} 23...
Rb5 {[%clk 0:00:05.6]} 24. Ne6 {[%clk 0:00:18.6]} 24... Nd7 {[%clk 0:00:03.2]}
25. Nxg7 {[%clk 0:00:13.5]} 25... Kxg7 {[%clk 0:00:04.1]} 26. Rh4 {[%clk
0:00:14]} 26... h5 {[%clk 0:00:02.9]} 27. Rdh1 {[%clk 0:00:13.5]} 27... Nc5
{[%clk 0:00:01.8]} 28. Qe5+ {[%clk 0:00:07.4]} 28... Qxe5 {[%clk 0:00:01.6]} 29.
Bxe5+ {[%clk 0:00:08.3]} 29... Kg6 {[%clk 0:00:02.3]} 30. Kc2 {[%clk 0:00:09]}
30... Nd7 {[%clk 0:00:01.9]} 31. Bf4 {[%clk 0:00:05.5]} 31... e5 {[%clk
0:00:01.8]} 32. Bd2 {[%clk 0:00:05.1]} 32... Nf6 {[%clk 0:00:02.3]} 33. f3
{[%clk 0:00:05.1]} 33... Reb8 {[%clk 0:00:02.8]} 34. Bc1 {[%clk 0:00:04.8]}
34... c5 {[%clk 0:00:02.3]} 35. fxg4 {[%clk 0:00:04.9]} 35... hxg4 {[%clk
0:00:02.5]} 36. Rh6+ {[%clk 0:00:05.2]} 36... Kg7 {[%clk 0:00:03.1]} 37. Rf1
{[%clk 0:00:05.6]} 37... R8b6 {[%clk 0:00:03.6]} 38. Rh4 {[%clk 0:00:04.9]}
38... c4 {[%clk 0:00:03.6]} 39. dxc4 {[%clk 0:00:04.8]} 39... dxc4 {[%clk
0:00:04.5]} 40. Rf5 {[%clk 0:00:05.2]} 40... Kg6 {[%clk 0:00:04]} 41. Rg5+
{[%clk 0:00:05.3]} 41... Kf7 {[%clk 0:00:04.7]} 42. Rh6 {[%clk 0:00:04.9]} 42...
e4 {[%clk 0:00:03.8]} 43. Rxb5 {[%clk 0:00:03.4]} 43... Rxb5 {[%clk 0:00:04]}
44. Rh1 {[%clk 0:00:03.1]} 44... Rf5 {[%clk 0:00:03.8]} 45. Be3 {[%clk
0:00:02.2]} 45... g3 {[%clk 0:00:03.7]} 46. Bd4 {[%clk 0:00:03.1]} 46... Ng4
{[%clk 0:00:03.5]} 47. Re1 {[%clk 0:00:03.6]} 47... Rf2+ {[%clk 0:00:03.2]} 48.
Kc1 {[%clk 0:00:02.7]} 48... e3 {[%clk 0:00:03.2]} 49. Bxe3 {[%clk 0:00:02.2]}
49... Nxe3 {[%clk 0:00:03.9]} 50. Rxe3 {[%clk 0:00:03.1]} 50... Rxg2 {[%clk
0:00:04.7]} 51. Re4 {[%clk 0:00:03]} 51... Rf2 {[%clk 0:00:04.4]} 52. Rf4+
{[%clk 0:00:01]} 52... Rxf4 {[%clk 0:00:04.3]} 0-1

[Event "Early-Titled-Tuesday-Blitz-May-28-2024"]
[Site "Chess.com"]
[Date "2024.05.28"]
[Round "7"]
[White "BashirliSaadat"]
[Black "ahkashefi2800"]
[Result "0-1"]
[WhiteElo "2377"]
[BlackElo "2553"]
[TimeControl "180+1"]
[EndTime "9:19:04 PDT"]
[Termination "ahkashefi2800 won by checkmate"]

1. d4 {[%clk 0:03:00.9]} 1... Nf6 {[%clk 0:02:49.1]} 2. c4 {[%clk 0:03:00.2]}
2... e6 {[%clk 0:02:50]} 3. Nc3 {[%clk 0:02:59.5]} 3... b6 {[%clk 0:02:50]} 4.
e3 {[%clk 0:02:55.5]} 4... Bb7 {[%clk 0:02:43.8]} 5. Nf3 {[%clk 0:02:55.4]} 5...
Bb4 {[%clk 0:02:31.9]} 6. Bd3 {[%clk 0:02:52.7]} 6... Ne4 {[%clk 0:02:26.2]} 7.
Bd2 {[%clk 0:02:49]} 7... Bxc3 {[%clk 0:02:20.8]} 8. Bxc3 {[%clk 0:02:45.3]}
8... O-O {[%clk 0:02:20.6]} 9. O-O {[%clk 0:02:42.5]} 9... f5 {[%clk 0:02:19.9]}
10. Nd2 {[%clk 0:02:41.7]} 10... Nxc3 {[%clk 0:02:18.7]} 11. bxc3 {[%clk
0:02:40]} 11... d6 {[%clk 0:02:18.8]} 12. Qe2 {[%clk 0:02:38.6]} 12... Nd7
{[%clk 0:02:17.9]} 13. e4 {[%clk 0:02:35.6]} 13... Qf6 {[%clk 0:02:05.5]} 14.
Rae1 {[%clk 0:02:29.1]} 14... f4 {[%clk 0:01:57.5]} 15. f3 {[%clk 0:02:27]}
15... e5 {[%clk 0:01:57.5]} 16. Nb3 {[%clk 0:02:18.7]} 16... a5 {[%clk
0:01:56.4]} 17. a4 {[%clk 0:02:16.5]} 17... Bc6 {[%clk 0:01:53.5]} 18. Qa2
{[%clk 0:02:16.2]} 18... Kh8 {[%clk 0:01:51.4]} 19. Rd1 {[%clk 0:02:07]} 19...
g5 {[%clk 0:01:49.8]} 20. h3 {[%clk 0:02:01.7]} 20... h5 {[%clk 0:01:49.5]} 21.
Kf2 {[%clk 0:02:01.5]} 21... Rg8 {[%clk 0:01:45.8]} 22. Ke2 {[%clk 0:02:00]}
22... Raf8 {[%clk 0:01:42.6]} 23. Rh1 {[%clk 0:01:58.8]} 23... Kg7 {[%clk
0:01:40.4]} 24. Rdf1 {[%clk 0:01:56.3]} 24... Rh8 {[%clk 0:01:37.4]} 25. Kd2
{[%clk 0:01:52.8]} 25... Qf7 {[%clk 0:01:34.1]} 26. Nc1 {[%clk 0:01:46.2]} 26...
Rfg8 {[%clk 0:01:31.4]} 27. Ne2 {[%clk 0:01:45.1]} 27... Nf8 {[%clk 0:01:27.8]}
28. Qb3 {[%clk 0:01:36.1]} 28... Qe8 {[%clk 0:01:27.1]} 29. Ra1 {[%clk
0:01:35.2]} 29... Ne6 {[%clk 0:01:25]} 30. Qa3 {[%clk 0:01:29.5]} 30... Bd7
{[%clk 0:01:22]} 31. Kc2 {[%clk 0:01:14.4]} 31... Kf6 {[%clk 0:01:21.3]} 32. Kd2
{[%clk 0:01:11.3]} 32... g4 {[%clk 0:01:15.4]} 33. hxg4 {[%clk 0:01:07.3]} 33...
hxg4 {[%clk 0:01:16.3]} 34. Bc2 {[%clk 0:00:44.1]} 34... gxf3 {[%clk 0:01:14.4]}
35. Rxh8 {[%clk 0:00:37.3]} 35... fxe2 {[%clk 0:00:46.6]} 36. Rh2 {[%clk
0:00:19.9]} 36... Rg3 {[%clk 0:00:39.8]} 37. d5 {[%clk 0:00:15.4]} 37... Nc5
{[%clk 0:00:26.8]} 38. Rah1 {[%clk 0:00:15.5]} 38... Bxa4 {[%clk 0:00:12.8]} 39.
Rh8 {[%clk 0:00:13.4]} 39... Qxh8 {[%clk 0:00:03.6]} 40. Rxh8 {[%clk 0:00:10.5]}
40... Bxc2 {[%clk 0:00:04.5]} 41. Rh2 {[%clk 0:00:03.9]} 41... Bd3 {[%clk
0:00:02.8]} 42. Qc1 {[%clk 0:00:04.2]} 42... Nxe4+ {[%clk 0:00:03]} 43. Ke1
{[%clk 0:00:03.8]} 43... Kg6 {[%clk 0:00:02.2]} 44. Rh3 {[%clk 0:00:03.4]} 44...
Rxg2 {[%clk 0:00:02.1]} 45. Rh1 {[%clk 0:00:02.4]} 45... f3 {[%clk 0:00:02.1]}
46. Qe3 {[%clk 0:00:02.4]} 46... f2+ {[%clk 0:00:02.2]} 47. Qxf2 {[%clk
0:00:02.1]} 47... Rxf2 {[%clk 0:00:02.4]} 48. Rg1+ {[%clk 0:00:02.9]} 48... Kf6
{[%clk 0:00:02.6]} 49. Rh1 {[%clk 0:00:02.2]} 49... Rf1+ {[%clk 0:00:02.3]} 50.
Rxf1+ {[%clk 0:00:02.5]} 50... exf1=Q# {[%clk 0:00:03.2]} 0-1

[Event "Early-Titled-Tuesday-Blitz-May-28-2024"]
[Site "Chess.com"]
[Date "2024.05.28"]
[Round "7"]
[White "Rsnr"]
[Black "Bykov_Egor"]
[Result "1-0"]
[WhiteElo "2901"]
[BlackElo "2657"]
[TimeControl "180+1"]
[EndTime "9:19:07 PDT"]
[Termination "Rsnr won by resignation"]

1. d4 {[%clk 0:03:00.9]} 1... Nf6 {[%clk 0:02:59.1]} 2. c4 {[%clk 0:03:00.9]}
2... c6 {[%clk 0:02:58.9]} 3. Nf3 {[%clk 0:03:00.9]} 3... d5 {[%clk 0:02:59.5]}
4. Qc2 {[%clk 0:03:01.5]} 4... g6 {[%clk 0:02:58.2]} 5. Bf4 {[%clk 0:03:01.3]}
5... Bf5 {[%clk 0:02:58.1]} 6. Qb3 {[%clk 0:03:01.3]} 6... Qb6 {[%clk
0:02:57.6]} 7. e3 {[%clk 0:03:01.1]} 7... Qxb3 {[%clk 0:02:21.8]} 8. axb3 {[%clk
0:03:00.9]} 8... Na6 {[%clk 0:02:22.4]} 9. cxd5 {[%clk 0:02:48.9]} 9... Nb4
{[%clk 0:02:02.6]} 10. dxc6 {[%clk 0:02:48.6]} 10... Nc2+ {[%clk 0:01:17.6]} 11.
Kd1 {[%clk 0:02:48.9]} 11... Nxa1 {[%clk 0:01:17.1]} 12. cxb7 {[%clk 0:02:48.9]}
12... Rd8 {[%clk 0:01:16.7]} 13. Bb5+ {[%clk 0:02:13.5]} 13... Bd7 {[%clk
0:01:01.4]} 14. Bc4 {[%clk 0:02:13.6]} 14... Ne4 {[%clk 0:00:48.7]} 15. Ke2
{[%clk 0:02:13.6]} 15... Nd6 {[%clk 0:00:47.4]} 16. Na3 {[%clk 0:02:09.2]} 16...
Rb8 {[%clk 0:00:41.4]} 17. Rxa1 {[%clk 0:01:28.4]} 17... Rxb7 {[%clk 0:00:40.3]}
18. Bxd6 {[%clk 0:01:29]} 18... exd6 {[%clk 0:00:39.5]} 19. Bd5 {[%clk
0:01:29.8]} 19... Rc7 {[%clk 0:00:38.3]} 20. Nd2 {[%clk 0:01:23.4]} 20... Be7
{[%clk 0:00:36.4]} 21. Ne4 {[%clk 0:00:59.2]} 21... Be6 {[%clk 0:00:28.8]} 22.
Nb5 {[%clk 0:00:58.6]} 22... Rc2+ {[%clk 0:00:16.2]} 23. Kd3 {[%clk 0:00:58.9]}
23... Bxd5 {[%clk 0:00:15.2]} 24. Nexd6+ {[%clk 0:00:42.9]} 24... Bxd6 {[%clk
0:00:15.2]} 25. Nxd6+ {[%clk 0:00:43.8]} 25... Kd7 {[%clk 0:00:15.9]} 26. Kxc2
{[%clk 0:00:44.1]} 26... Kxd6 {[%clk 0:00:16.2]} 27. Ra6+ {[%clk 0:00:35.6]}
27... Kc7 {[%clk 0:00:12.1]} 28. Rxa7+ {[%clk 0:00:33.4]} 28... Kb6 {[%clk
0:00:12.7]} 29. Rd7 {[%clk 0:00:31.7]} 29... Rc8+ {[%clk 0:00:11.4]} 30. Kd3
{[%clk 0:00:31.1]} 30... Bxb3 {[%clk 0:00:09.1]} 31. d5 {[%clk 0:00:24.5]} 31...
Rc7 {[%clk 0:00:08]} 32. Rxc7 {[%clk 0:00:25]} 32... Kxc7 {[%clk 0:00:07.7]} 33.
Kd4 {[%clk 0:00:25.9]} 33... Kd6 {[%clk 0:00:07.5]} 34. e4 {[%clk 0:00:26]}
34... g5 {[%clk 0:00:05.5]} 35. e5+ {[%clk 0:00:21]} 35... Kc7 {[%clk
0:00:05.8]} 36. f3 {[%clk 0:00:13]} 36... h5 {[%clk 0:00:05.8]} 37. g3 {[%clk
0:00:11.7]} 37... Kb6 {[%clk 0:00:05.1]} 38. f4 {[%clk 0:00:11.7]} 38... gxf4
{[%clk 0:00:03.6]} 39. gxf4 {[%clk 0:00:12.6]} 39... Ba2 {[%clk 0:00:02.2]} 40.
f5 {[%clk 0:00:12.4]} 40... Kc7 {[%clk 0:00:02.2]} 41. Kc5 {[%clk 0:00:08.3]}
41... Bb1 {[%clk 0:00:02.7]} 42. f6 {[%clk 0:00:08.3]} 42... Kd7 {[%clk
0:00:02.8]} 43. b4 {[%clk 0:00:08.7]} 43... Bd3 {[%clk 0:00:01.6]} 44. b5 {[%clk
0:00:09.1]} 44... Be2 {[%clk 0:00:01.8]} 45. b6 {[%clk 0:00:09.7]} 45... Ba6
{[%clk 0:00:02.5]} 46. e6+ {[%clk 0:00:05.4]} 46... fxe6 {[%clk 0:00:02.3]} 47.
f7 {[%clk 0:00:06.3]} 47... Ke7 {[%clk 0:00:02.9]} 48. dxe6 {[%clk 0:00:06.8]}
48... Bc8 {[%clk 0:00:02.2]} 49. Kd4 {[%clk 0:00:06.3]} 49... Bb7 {[%clk
0:00:02.2]} 50. Ke5 {[%clk 0:00:05.2]} 50... Bc6 {[%clk 0:00:02.1]} 51. Kf5
{[%clk 0:00:05.4]} 51... Bd5 {[%clk 0:00:01.3]} 52. Kg6 {[%clk 0:00:05.9]} 52...
Bxe6 {[%clk 0:00:01.4]} 53. b7 {[%clk 0:00:06.3]} 53... Bxf7+ {[%clk 0:00:02.3]}
54. Kg7 {[%clk 0:00:06.7]} 1-0

[Event "Early-Titled-Tuesday-Blitz-May-28-2024"]
[Site "Chess.com"]
[Date "2024.05.28"]
[Round "7"]
[White "MITerryble"]
[Black "youngKID"]
[Result "0-1"]
[WhiteElo "3015"]
[BlackElo "2891"]
[TimeControl "180+1"]
[EndTime "9:19:10 PDT"]
[Termination "youngKID won by resignation"]

1. c4 {[%clk 0:03:00.9]} 1... e5 {[%clk 0:02:58.2]} 2. Nc3 {[%clk 0:03:00]} 2...
Nc6 {[%clk 0:02:58.5]} 3. Nf3 {[%clk 0:03:00.1]} 3... f5 {[%clk 0:02:58.8]} 4.
g3 {[%clk 0:02:56.2]} 4... Nf6 {[%clk 0:02:58.4]} 5. d4 {[%clk 0:02:52.6]} 5...
e4 {[%clk 0:02:58]} 6. Nh4 {[%clk 0:02:47.3]} 6... d5 {[%clk 0:02:52.8]} 7. Bg5
{[%clk 0:02:39.1]} 7... Bb4 {[%clk 0:02:52.7]} 8. e3 {[%clk 0:02:37]} 8... Be6
{[%clk 0:02:44.7]} 9. Qb3 {[%clk 0:02:31.7]} 9... O-O {[%clk 0:02:32]} 10. cxd5
{[%clk 0:02:17.6]} 10... Qxd5 {[%clk 0:02:29.4]} 11. Bxf6 {[%clk 0:02:03.7]}
11... Qxb3 {[%clk 0:02:18.3]} 12. axb3 {[%clk 0:02:04.6]} 12... Rxf6 {[%clk
0:02:18.9]} 13. Bc4 {[%clk 0:02:05.1]} 13... Ne7 {[%clk 0:02:19.5]} 14. Ke2
{[%clk 0:01:43.4]} 14... c6 {[%clk 0:02:15.7]} 15. Rhc1 {[%clk 0:01:39.2]} 15...
a6 {[%clk 0:02:05.3]} 16. Ng2 {[%clk 0:01:38.4]} 16... g5 {[%clk 0:02:04.2]} 17.
h4 {[%clk 0:01:37.9]} 17... h6 {[%clk 0:02:04.6]} 18. hxg5 {[%clk 0:01:38.4]}
18... hxg5 {[%clk 0:02:04.8]} 19. Rh1 {[%clk 0:01:39.1]} 19... Nd5 {[%clk
0:01:53.9]} 20. Bxd5 {[%clk 0:01:35.9]} 20... cxd5 {[%clk 0:01:25.5]} 21. Rh5
{[%clk 0:01:34.6]} 21... Rg6 {[%clk 0:01:25.8]} 22. Rah1 {[%clk 0:01:34.4]}
22... Kf7 {[%clk 0:01:26.3]} 23. Rh7+ {[%clk 0:01:15.9]} 23... Rg7 {[%clk
0:01:26.4]} 24. R1h6 {[%clk 0:01:16.5]} 24... Bf8 {[%clk 0:01:15.6]} 25. Na4
{[%clk 0:01:03.7]} 25... Rc8 {[%clk 0:00:59.8]} 26. Kd2 {[%clk 0:00:59.6]} 26...
Bb4+ {[%clk 0:00:54.1]} 27. Kd1 {[%clk 0:00:56.7]} 27... Rc6 {[%clk 0:00:50]}
28. Nc5 {[%clk 0:00:49.5]} 28... Bxc5 {[%clk 0:00:37.3]} 29. dxc5 {[%clk
0:00:50.4]} 29... b6 {[%clk 0:00:37.5]} 30. cxb6 {[%clk 0:00:35.1]} 30... Rxb6
{[%clk 0:00:36.2]} 31. Kc1 {[%clk 0:00:28.4]} 31... Rxh7 {[%clk 0:00:33.8]} 32.
Rxh7+ {[%clk 0:00:29.3]} 32... Kg6 {[%clk 0:00:34.6]} 33. Rc7 {[%clk 0:00:21.9]}
33... Kf6 {[%clk 0:00:31.9]} 34. Ne1 {[%clk 0:00:20.3]} 34... d4 {[%clk
0:00:28.5]} 35. exd4 {[%clk 0:00:21.2]} 35... Bxb3 {[%clk 0:00:28.9]} 36. Ng2
{[%clk 0:00:19.6]} 36... Rd6 {[%clk 0:00:23.5]} 37. Rc3 {[%clk 0:00:15.7]} 37...
Be6 {[%clk 0:00:23.4]} 38. Ra3 {[%clk 0:00:12.8]} 38... Bc4 {[%clk 0:00:20.2]}
39. Ne3 {[%clk 0:00:11.9]} 39... Bb5 {[%clk 0:00:20.8]} 40. Rc3 {[%clk
0:00:09.7]} 40... f4 {[%clk 0:00:15.1]} 41. gxf4 {[%clk 0:00:09.9]} 41... gxf4
{[%clk 0:00:15.8]} 42. Nc2 {[%clk 0:00:10.8]} 42... Kf5 {[%clk 0:00:13]} 43.
Rc5+ {[%clk 0:00:01.9]} 43... Kg4 {[%clk 0:00:13.2]} 44. Kd2 {[%clk 0:00:02.4]}
44... Bd3 {[%clk 0:00:13.5]} 45. Ne1 {[%clk 0:00:02]} 45... Rxd4 {[%clk
0:00:13.2]} 46. f3+ {[%clk 0:00:02.6]} 46... Kg3 {[%clk 0:00:12]} 47. fxe4
{[%clk 0:00:02.2]} 47... Bxe4+ {[%clk 0:00:12.1]} 48. Kc3 {[%clk 0:00:02.5]}
48... Rd1 {[%clk 0:00:09.1]} 49. Rg5+ {[%clk 0:00:03.1]} 49... Kf2 {[%clk
0:00:09.2]} 50. Rg4 {[%clk 0:00:03.1]} 50... Ke3 {[%clk 0:00:09.7]} 51. Nc2+
{[%clk 0:00:01.8]} 51... Bxc2 {[%clk 0:00:09.8]} 52. Kxc2 {[%clk 0:00:02.7]}
52... Rd6 {[%clk 0:00:10.3]} 53. Rg5 {[%clk 0:00:02.8]} 53... f3 {[%clk
0:00:10.6]} 54. Re5+ {[%clk 0:00:03.4]} 54... Kf4 {[%clk 0:00:11.1]} 55. Re8
{[%clk 0:00:03.3]} 55... f2 {[%clk 0:00:11.5]} 0-1

[Event "Early-Titled-Tuesday-Blitz-May-28-2024"]
[Site "Chess.com"]
[Date "2024.05.28"]
[Round "7"]
[White "eagleclaw07"]
[Black "Shankland"]
[Result "1-0"]
[WhiteElo "2851"]
[BlackElo "2978"]
[TimeControl "180+1"]
[EndTime "9:19:11 PDT"]
[Termination "eagleclaw07 won by resignation"]

1. d4 {[%clk 0:03:00.9]} 1... d5 {[%clk 0:01:58.4]} 2. c4 {[%clk 0:03:00.8]}
2... c6 {[%clk 0:01:57]} 3. Nf3 {[%clk 0:03:00.9]} 3... Nf6 {[%clk 0:01:56.8]}
4. e3 {[%clk 0:02:59.6]} 4... e6 {[%clk 0:01:57]} 5. Bd3 {[%clk 0:02:58.8]} 5...
Nbd7 {[%clk 0:01:56.4]} 6. O-O {[%clk 0:02:58.9]} 6... Be7 {[%clk 0:01:56.4]} 7.
Nbd2 {[%clk 0:02:55.6]} 7... b6 {[%clk 0:01:56.3]} 8. b3 {[%clk 0:02:49.8]} 8...
Bb7 {[%clk 0:01:55.8]} 9. Bb2 {[%clk 0:02:50.1]} 9... O-O {[%clk 0:01:56.4]} 10.
Qe2 {[%clk 0:02:50.2]} 10... Qc7 {[%clk 0:01:55]} 11. Rac1 {[%clk 0:02:48.5]}
11... Rad8 {[%clk 0:01:53.6]} 12. cxd5 {[%clk 0:02:40.8]} 12... exd5 {[%clk
0:01:54.5]} 13. Ne5 {[%clk 0:02:37.7]} 13... Rfe8 {[%clk 0:01:54.2]} 14. f4
{[%clk 0:02:37.7]} 14... c5 {[%clk 0:01:49.6]} 15. Rf3 {[%clk 0:02:33.5]} 15...
g6 {[%clk 0:01:46.1]} 16. Rcf1 {[%clk 0:01:57.7]} 16... c4 {[%clk 0:01:36.7]}
17. bxc4 {[%clk 0:01:56.4]} 17... dxc4 {[%clk 0:01:36.8]} 18. Bxc4 {[%clk
0:01:56.9]} 18... Nxe5 {[%clk 0:01:36.4]} 19. fxe5 {[%clk 0:01:56.4]} 19... Bxf3
{[%clk 0:01:22.1]} 20. Qxf3 {[%clk 0:01:55.5]} 20... Rf8 {[%clk 0:01:14.3]} 21.
exf6 {[%clk 0:01:49.3]} 21... Bb4 {[%clk 0:01:14.4]} 22. Qh3 {[%clk 0:00:55.1]}
22... h5 {[%clk 0:01:13.4]} 23. Rf5 {[%clk 0:00:24.9]} 23... Qc8 {[%clk
0:01:06.8]} 24. Rxh5 {[%clk 0:00:06.7]} 24... Qxh3 {[%clk 0:01:06.3]} 25. Rxh3
{[%clk 0:00:07.6]} 25... Bxd2 {[%clk 0:01:06.9]} 26. e4 {[%clk 0:00:05.1]} 26...
Rc8 {[%clk 0:01:03.1]} 27. Bb3 {[%clk 0:00:04.7]} 27... Rfd8 {[%clk 0:00:58.9]}
28. e5 {[%clk 0:00:04.6]} 28... Bc1 {[%clk 0:00:59.1]} 29. Ba1 {[%clk
0:00:04.1]} 29... Ba3 {[%clk 0:00:57.5]} 30. Bc3 {[%clk 0:00:03.9]} 30... a5
{[%clk 0:00:35.1]} 31. e6 {[%clk 0:00:03.9]} 31... Rc7 {[%clk 0:00:23.8]} 32.
exf7+ {[%clk 0:00:03.5]} 32... Rxf7 {[%clk 0:00:23.8]} 33. Rh6 {[%clk
0:00:02.1]} 33... a4 {[%clk 0:00:20.4]} 34. Rxg6+ {[%clk 0:00:02.6]} 34... Kf8
{[%clk 0:00:20.7]} 35. Be6 {[%clk 0:00:03.1]} 35... b5 {[%clk 0:00:14.4]} 36. d5
{[%clk 0:00:03.7]} 36... b4 {[%clk 0:00:14.8]} 37. Bd4 {[%clk 0:00:03.5]} 37...
b3 {[%clk 0:00:15.2]} 38. axb3 {[%clk 0:00:03.5]} 38... axb3 {[%clk 0:00:16.1]}
39. Rg7 {[%clk 0:00:03.9]} 39... Rxg7 {[%clk 0:00:12.2]} 40. fxg7+ {[%clk
0:00:04.1]} 40... Ke7 {[%clk 0:00:12.8]} 41. g8=Q {[%clk 0:00:03.6]} 41... Rxg8
{[%clk 0:00:13.3]} 42. Bxg8 {[%clk 0:00:04.5]} 42... b2 {[%clk 0:00:13.6]} 43.
Bxb2 {[%clk 0:00:05]} 43... Bxb2 {[%clk 0:00:13.1]} 44. Kf2 {[%clk 0:00:05.6]}
44... Kf6 {[%clk 0:00:13.2]} 45. Kf3 {[%clk 0:00:05.7]} 45... Be5 {[%clk
0:00:13.4]} 46. h3 {[%clk 0:00:05.2]} 46... Kg5 {[%clk 0:00:13.3]} 47. g3 {[%clk
0:00:05.5]} 47... Bd6 {[%clk 0:00:13.6]} 48. Be6 {[%clk 0:00:06]} 48... Kf6
{[%clk 0:00:13.7]} 49. Kg4 {[%clk 0:00:06.3]} 49... Be5 {[%clk 0:00:13.5]} 50.
Kh4 {[%clk 0:00:05.7]} 50... Bd6 {[%clk 0:00:13.6]} 51. g4 {[%clk 0:00:05.8]}
51... Kg6 {[%clk 0:00:13.4]} 52. Bf5+ {[%clk 0:00:04.9]} 52... Kf6 {[%clk
0:00:13.6]} 53. Kh5 {[%clk 0:00:04.9]} 53... Be7 {[%clk 0:00:13.4]} 54. h4
{[%clk 0:00:04.7]} 54... Ke5 {[%clk 0:00:13.5]} 55. Be6 {[%clk 0:00:05.3]} 55...
Kf4 {[%clk 0:00:13.6]} 56. g5 {[%clk 0:00:04.8]} 56... Bd8 {[%clk 0:00:13.8]}
57. Kg6 {[%clk 0:00:04.7]} 1-0